lending/lending_fUSD_20250224
["ID","MTS","AMOUNT","RATE_DAILY","PERIOD"]
[354315448,1740407462017,-500.0,0.00017669,2]
[354315449,1740407462027,-500.0,0.0001767,2]
[354315450,1740407462037,-578.28,0.00017671,2]
[354315451,1740407462046,-500.0,0.00017671,2]
[354315452,1740407462057,-500.0,0.00017671,2]
[354315453,1740407462068,-500.0,0.00017671,2]
[354315454,1740407462078,-500.0,0.00017671,2]
[354315455,1740407462088,-1861.6113,0.000177,2]
[354315456,1740407462097,-500.0,0.00017751,2]
[354315457,1740407462107,-500.0,0.00017751,2]
[354315458,1740407462117,-500.0,0.00017751,2]
[354315459,1740407462126,-300.08451254,0.00017751,2]
[354315460,1740407462135,-500.0,0.00017752,2]
[354315461,1740407462145,-578.28,0.00017753,2]
[354315462,1740407462156,-500.0,0.00017753,2]
[354315463,1740407462166,-620.76,0.00017753,2]
[354315464,1740407462176,-500.0,0.00017753,2]
[354315465,1740407462186,-500.0,0.00017753,2]
[354315466,1740407462195,-253.09600002,0.00017833,2]
[354315467,1740407462204,-500.0,0.00017833,2]
[354315468,1740407462214,-186.12,0.00017833,2]
[354315469,1740407462223,-500.0,0.00017834,2]
[354315470,1740407462232,-578.28,0.00017835,2]
[354315471,1740407462241,-500.0,0.00017835,2]
[354315472,1740407462251,-500.0,0.00017835,2]
[354315473,1740407462261,-500.0,0.00017835,2]
[354315474,1740407462271,-2546115.72655374,0.000179,5]
[354315475,1740407462280,-109411.9699578,0.000179,2]
[354315476,1740407462290,-151.0,0.000179,2]
[354315477,1740407462299,-500.0,0.00017915,2]
[354315478,1740407462313,-500.0,0.00017916,2]
[354315479,1740407462322,-578.28,0.00017917,2]
[354315480,1740407462332,-198.14,0.00017917,2]
[354315481,1740407462342,-547.13,0.00017917,2]
[354315482,1740407462353,-500.0,0.00017917,2]
[354315483,1740407462363,-150.0,0.00017972,2]
[354315484,1740407462372,-500.0,0.00017998,2]
[354315485,1740407462382,-500.0,0.00017999,2]
[354315486,1740407462391,-578.28,0.00018,2]
[354315487,1740407462402,-500.0,0.00018,2]
[354315488,1740407462412,-500.0,0.0001808,2]
[354315489,1740407462421,-163.27,0.00018081,2]
[354315490,1740407462431,-578.28,0.00018082,2]
[354315491,1740407462441,-267.57,0.00018082,2]
[354315492,1740407462451,-200.0,0.00018082,2]
[354315493,1740407462461,-500.0,0.00018162,2]
[354315494,1740407462470,-578.28,0.00018164,2]
[354315495,1740407462479,-189.2,0.00018244,2]
[354315496,1740407462489,-578.28,0.00018246,2]
[354315497,1740407462498,-578.28,0.00018328,2]
[354315498,1740407462508,-348.75,0.0001861,2]
[354315499,1740407462518,-208.43242019,0.00019257,2]
[354315500,1740407462527,-175.64,0.00019317,2]
[354315501,1740407462536,-360.88,0.00019339,2]
[354315502,1740407462545,-7294.25,0.00019339,2]
[354315503,1740407462563,-771.74,0.00019397,30]
[354315504,1740407462573,-1000.0,0.0001955,2]
[354315505,1740407462582,-500.0,0.00019616,7]
[354315506,1740407462592,-1677.36325162,0.00019667,2]
[354315507,1740407462601,-1677.36325155,0.00019667,2]
[354315508,1740407462611,-980.58,0.00019865,2]
[354315509,1740407462620,-500.0,0.00019879,3]
[354315510,1740407462629,-2000.0,0.0001988,30]
[354315511,1740407462639,-21108.09474992,0.0002,10]
[354315512,1740407462649,-18716.71189002,0.0002,15]
[354315513,1740407462659,-5590.79394607,0.0002027,2]
[354315514,1740407462669,-151.0,0.00020501,2]
[354315515,1740407462679,-150.0,0.00020501,2]
[354315516,1740407462689,-784.0,0.00020501,2]
[354315517,1740407462698,-1266.0,0.00020501,2]
[354315518,1740407462708,-795.0,0.00020501,2]
[354315519,1740407462819,-1424.0,0.00020501,2]
[354315520,1740407462830,-1000.0,0.00020543,2]
[354315521,1740407462839,-1000.0,0.00020543,2]
[354315522,1740407462849,-1000.0,0.00020543,2]
[354315523,1740407462859,-1000.0,0.00020543,2]
[354315524,1740407462868,-1000.0,0.00020543,2]
[354315525,1740407462878,-1000.0,0.00020543,2]
[354315526,1740407462887,-1000.0,0.00020543,2]
[354315527,1740407462897,-1000.0,0.00020543,2]
[354315528,1740407462907,-1000.0,0.00020543,2]
[354315529,1740407462917,-1000.0,0.00020543,2]
[354315530,1740407462927,-150.0,0.00020548,2]
[354315531,1740407462936,-209.31,0.000206,2]
[354315532,1740407462945,-15372.22056741,0.00020668,2]
[354315533,1740407462955,-939.62613935,0.00020668,2]
[354315534,1740407462965,-30999.999999,0.00020668,2]
[354315535,1740407462974,-348.75,0.00020874,2]
[354315536,1740407462984,-171.85555556,0.00020986,120]
[354315537,1740407462993,-1505.05,0.00021,7]
[354315538,1740407463003,-1000.0,0.00021214,2]
[354315539,1740407463013,-1000.0,0.00021214,2]
[354315540,1740407463023,-1000.0,0.00021214,2]
[354315541,1740407463033,-1000.0,0.00021214,2]
[354315542,1740407463043,-1000.0,0.00021214,2]
[354315543,1740407463053,-1000.0,0.00021214,2]
[354315544,1740407463068,-1000.0,0.00021214,2]
[354315545,1740407463078,-1000.0,0.00021214,2]
[354315546,1740407463088,-1000.0,0.00021214,2]
[354315547,1740407463098,-1000.0,0.00021214,2]
[354315548,1740407463107,-1000.0,0.00021505,2]
[354315549,1740407463117,-57962.50086279,0.00021554,2]
[354315550,1740407463127,-171.85555556,0.00021973,120]
[354315551,1740407463137,-771.74,0.00021981,30]
[354315552,1740407463148,-152.0,0.00022,2]
[354315553,1740407463158,-2528.63525981,0.00022,7]
[354315554,1740407463169,-208.43242019,0.00022043,3]
[354315555,1740407463180,-232.86,0.00022264,2]
[354315556,1740407463190,-180.0,0.00022603,120]
[354315557,1740407463200,-1677.36325155,0.00022743,2]
[354315558,1740407463210,-171.85555556,0.00022959,120]
[354315559,1740407463220,-200.0,0.00023,2]
[354315560,1740407463231,-152.0,0.00023014,2]
[354315561,1740407463241,-348.75,0.00023138,2]
[354315562,1740407463251,-1000.0,0.0002346,2]
[354315563,1740407463261,-179.85,0.00023657,2]
[354315564,1740407463271,-1353.33,0.00023726,30]
[354315565,1740407463282,-1353.33,0.00023726,30]
[354315566,1740407463291,-1353.33,0.00023726,30]
[354315567,1740407463301,-1353.33,0.00023726,30]
[354315568,1740407463315,-1353.33,0.00023726,30]
[354315569,1740407463324,-1353.33,0.00023726,30]
[354315570,1740407463334,-1353.33,0.00023726,30]
[354315571,1740407463344,-1353.33,0.00023726,30]
[354315572,1740407463353,-1353.33,0.00023726,30]
[354315573,1740407463363,-1353.33,0.00023726,30]
[354315574,1740407463372,-1353.33,0.00023726,30]
[354315575,1740407463382,-1353.33,0.00023726,30]
[354315576,1740407463392,-1353.33,0.00023726,30]
[354315577,1740407463402,-1353.33,0.00023726,30]
[354315578,1740407463412,-1353.33,0.00023726,30]
[354315579,1740407463421,-1353.33,0.00023726,30]
[354315580,1740407463430,-1353.33,0.00023726,30]
[354315581,1740407463440,-1353.33,0.00023726,30]
[354315582,1740407463449,-1353.33,0.00023726,30]
[354315583,1740407463459,-1353.33,0.00023726,30]
[354315584,1740407463469,-1353.33,0.00023726,30]
[354315585,1740407463479,-1353.33,0.00023726,30]
[354315586,1740407463489,-1353.33,0.00023726,30]
[354315587,1740407463498,-1353.42889934,0.00023726,30]
[354315588,1740407463509,-3000.0,0.000238,2]
[354315589,1740407463519,-620.09,0.00023836,2]
[354315590,1740407463528,-153.49,0.000239,31]
[354315591,1740407463538,-153.49,0.000239,31]
[354315592,1740407463548,-153.49,0.000239,31]
[354315593,1740407463559,-153.49,0.000239,31]
[354315594,1740407463569,-153.49,0.000239,31]
[354315595,1740407463579,-153.49,0.000239,31]
[354315596,1740407463588,-153.49,0.000239,31]
[354315597,1740407463598,-153.49,0.000239,31]
[354315598,1740407463607,-171.85555556,0.00023945,120]
[354315599,1740407463617,-460.23311852,0.00024,2]
[354315600,1740407463627,-152.0,0.00024164,2]
[354315601,1740407463636,-771.74,0.00024565,30]
[354315602,1740407463645,-150.5,0.00024628,120]
[354315603,1740407463655,-286.98,0.00024628,120]
[354315604,1740407463665,-289.0,0.00024628,120]
[354315605,1740407463674,-150.5,0.00024638,120]
[354315606,1740407463684,-150.5,0.00024638,120]
[354315607,1740407463693,-289.0,0.00024638,120]
[354315608,1740407463703,-179.79,0.00024648,120]
[354315609,1740407463713,-150.5,0.00024648,120]
[354315610,1740407463722,-150.5,0.00024648,120]
[354315611,1740407463732,-289.0,0.00024648,120]
[354315612,1740407463742,-150.0,0.00024658,2]
[354315613,1740407463753,-1000.0,0.00024658,2]
[354315614,1740407463763,-155.58,0.000248,2]
[354315615,1740407463773,-512.72,0.000248,2]
[354315616,1740407463783,-208.43242019,0.00024829,3]
[354315617,1740407463792,-570.31317479,0.0002485,2]
[354315618,1740407463802,-192.92447968,0.000249,2]
[354315619,1740407463815,-150.0,0.00024927,120]
[354315620,1740407463824,-171.85555556,0.00024932,120]
[354315621,1740407463834,-150.0,0.00025,2]
[354315622,1740407463844,-80705.08049022,0.00025,2]
[354315623,1740407463970,-533.5,0.00025,2]
[354315624,1740407464502,-791.36275602,0.000123,2]
[354315625,1740407464511,-250.0,0.0001386,2]
[354315626,1740407464521,-392.51554355,0.00016438,2]
[354315627,1740407464532,-500.0,0.00016438,2]
[354315628,1740407464541,-500.0,0.00016438,2]
[354315629,1740407464551,-500.0,0.00016438,2]
[354315630,1740407464567,-500.0,0.00016438,2]
[354315631,1740407464577,-500.0,0.00016518,2]
[354315632,1740407464587,-500.0,0.00016518,2]
[354315633,1740407464596,-500.0,0.00016518,2]
[354315634,1740407464710,-500.0,0.00016518,2]
[354315635,1740407464721,-500.0,0.00016518,2]
[354315636,1740407464731,-500.0,0.00016519,2]
[354315637,1740407464741,-500.0,0.00016519,2]
[354315638,1740407464752,-345.53529099,0.0001652,2]
[354315639,1740407464763,-500.0,0.0001652,2]
[354315640,1740407464773,-500.0,0.0001652,2]
[354315641,1740407464783,-500.0,0.0001652,2]
[354315642,1740407464793,-500.0,0.000166,2]
[354315643,1740407464804,-500.0,0.000166,2]
[354315644,1740407464818,-500.0,0.000166,2]
[354315645,1740407464828,-500.0,0.000166,2]
[354315646,1740407464838,-500.0,0.000166,2]
[354315647,1740407464848,-538.63496429,0.00016601,2]
[354315648,1740407464858,-500.0,0.00016601,2]
[354315649,1740407464868,-500.0,0.00016602,2]
[354315650,1740407464877,-500.0,0.00016602,2]
[354315651,1740407464888,-500.0,0.00016602,2]
[354315652,1740407464898,-500.0,0.00016683,2]
[354315653,1740407464908,-500.0,0.00016683,2]
[354315654,1740407464918,-500.0,0.00016683,2]
[354315655,1740407464927,-500.0,0.00016683,2]
[354315656,1740407464937,-500.0,0.00016683,2]
[354315657,1740407464946,-500.0,0.00016684,2]
[354315658,1740407464955,-340.1121132,0.00016684,2]
[354315659,1740407464964,-500.0,0.00016684,2]
[354315660,1740407464974,-500.0,0.00016684,2]
[354315661,1740407464983,-500.0,0.00016765,2]
[354315662,1740407464994,-500.0,0.00016765,2]
[354315663,1740407465003,-205.63933195,0.00016765,2]
[354315664,1740407465068,-0.94970669,0.00016438,2]
[354315665,1740407465172,-355.64993399,0.00016438,2]
[354315666,1740407465191,-143.40035932,0.00016438,2]
[354315667,1740407465201,-500.0,0.00016438,2]
[354315668,1740407465210,-500.0,0.00016438,2]
[354315669,1740407465220,-500.0,0.00016438,2]
[354315670,1740407465229,-500.0,0.00016519,2]
[354315671,1740407465238,-500.0,0.0001652,2]
[354315672,1740407465247,-500.0,0.00016602,2]
[354315673,1740407465256,-500.0,0.00016684,2]
[354315674,1740407465266,-294.36066805,0.00016765,2]
[354315675,1740407465275,-500.0,0.00016765,2]
[354315676,1740407465285,-500.0,0.00016765,2]
[354315677,1740407465294,-500.0,0.00016766,2]
[354315678,1740407465303,-500.0,0.00016767,2]
[354315679,1740407465317,-500.0,0.00016767,2]
[354315680,1740407465327,-500.0,0.00016767,2]
[354315681,1740407465336,-500.0,0.00016847,2]
[354315682,1740407465346,-500.0,0.00016847,2]
[354315683,1740407465355,-500.0,0.00016847,2]
[354315684,1740407465365,-500.0,0.00016847,2]
[354315685,1740407465374,-500.0,0.00016847,2]
[354315686,1740407465384,-500.0,0.00016848,2]
[354315687,1740407465393,-500.0,0.00016849,2]
[354315688,1740407465403,-500.0,0.00016849,2]
[354315689,1740407465413,-500.0,0.00016849,2]
[354315690,1740407465423,-500.0,0.00016929,2]
[354315691,1740407465432,-500.0,0.00016929,2]
[354315692,1740407465441,-500.0,0.00016929,2]
[354315693,1740407465451,-500.0,0.00016929,2]
[354315694,1740407465460,-500.0,0.00016929,2]
[354315695,1740407465470,-500.0,0.0001693,2]
[354315696,1740407465479,-1679.924662,0.00016931,2]
[354315697,1740407465488,-500.0,0.00016931,2]
[354315698,1740407465498,-500.0,0.00016931,2]
[354315699,1740407465507,-500.0,0.00017011,2]
[354315700,1740407465517,-511.85695054,0.00017011,2]
[354315701,1740407465526,-500.0,0.00017011,2]
[354315702,1740407465536,-500.0,0.00017011,2]
[354315703,1740407465545,-500.0,0.00017011,2]
[354315704,1740407465555,-500.0,0.00017012,2]
[354315705,1740407465567,-500.0,0.00017013,2]
[354315706,1740407465577,-1679.924662,0.00017013,2]
[354315707,1740407465587,-500.0,0.00017013,2]
[354315708,1740407465597,-500.0,0.00017013,2]
[354315709,1740407465606,-500.0,0.00017093,2]
[354315710,1740407465615,-500.0,0.00017093,2]
[354315711,1740407465626,-500.0,0.00017093,2]
[354315712,1740407465637,-500.0,0.00017093,2]
[354315713,1740407465647,-500.0,0.00017095,2]
[354315714,1740407465657,-500.0,0.00017095,2]
[354315715,1740407465667,-500.0,0.00017095,2]
[354315716,1740407465677,-500.0,0.00017095,2]
[354315717,1740407465686,-500.0,0.00017176,2]
[354315718,1740407465696,-500.0,0.00017176,2]
[354315719,1740407465705,-500.0,0.00017176,2]
[354315720,1740407465714,-500.0,0.00017178,2]
[354315721,1740407465724,-500.0,0.00017178,2]
[354315722,1740407465733,-424.25529809,0.00017178,2]
[354315723,1740407465742,-500.0,0.00017178,2]
[354315724,1740407465754,-500.0,0.00017258,2]
[354315725,1740407465764,-500.0,0.00017258,2]
[354315726,1740407465775,-500.0,0.00017258,2]
[354315727,1740407465784,-500.0,0.0001726,2]
[354315728,1740407465795,-500.0,0.0001726,2]
[354315729,1740407465804,-500.0,0.0001726,2]
[354315730,1740407465818,-595.55160025,0.0001734,2]
[354315731,1740407465827,-500.0,0.0001734,2]
[354315732,1740407465837,-389.89,0.0001734,2]
[354315733,1740407465847,-500.0,0.00017342,2]
[354315734,1740407465856,-500.0,0.00017342,2]
[354315735,1740407465866,-303.06,0.00017342,2]
[354315736,1740407465877,-447.83,0.00017422,2]
[354315737,1740407465887,-500.0,0.00017424,2]
[354315738,1740407465897,-500.0,0.00017424,2]
[354315739,1740407465907,-500.0,0.00017506,2]
[354315740,1740407465916,-540.0,0.00020501,2]
[354315741,1740407465926,-444.336,0.00023501,2]
[354315742,1740407465936,-82307.41950978,0.00025,2]
[354315743,1740407465946,-6456.25321279,0.00025,2]
[354315744,1740407465959,-1943.63694327,0.00025,2]
[354315745,1740407465971,-610.00001,0.00025,2]
[354315746,1740407465982,-9812.58599999,0.00025,2]
[354315747,1740407465994,-1306.58980199,0.00025,2]
[354315748,1740407466006,-729.99334585,0.00025,2]
[354315749,1740407543877,151.0,0.0002,120]
[354315750,1740407663640,151.0,0.0002,120]
[354315752,1740407871710,500.0,0.0002,120]
[354315754,1740407937431,750.0,0.0002,120]
[354315756,1740408040993,408.0,0.0002,120]
[354315758,1740408140424,180.0,0.0002,120]
[354315760,1740408179051,167.58,8.767e-05,2]
[354315761,1740408185735,151.0,0.0002,120]
[354316299,1740408631770,-300.0,9.998e-05,2]
[354316300,1740408631784,-1000.0,9.999e-05,2]
[354316301,1740408631794,-1000.0,9.999e-05,2]
[354316302,1740408631804,-1000.0,9.999e-05,2]
[354316303,1740408631813,-288.9366234,9.999e-05,2]
[354316304,1740408631823,-150.0,0.00010479,2]
[354316305,1740408631832,-150.0,0.00010959,2]
[354316306,1740408631842,-150.0,0.00010999,2]
[354316307,1740408631852,-150.0,0.00010999,2]
[354316308,1740408631861,-550.0,0.00013,2]
[354316309,1740408631871,-991.74,0.00013355,2]
[354316310,1740408631881,-781.84,0.00013798,2]
[354316311,1740408631891,-1439.9,0.00014882,2]
[354316312,1740408631901,-2000.0,0.00014894,2]
[354316313,1740408631911,-3528.37477622,0.00014898,2]
[354316314,1740408631924,-49.00522378,0.00014898,2]
[354316315,1740408631935,-250.0,0.00014934,2]
[354316316,1740408631947,-600.0,0.00015,2]
[354316317,1740408631957,-200.0,0.00015041,2]
[354316318,1740408631968,-300.0,0.0001506,2]
[354316319,1740408631979,-986.15,0.00015061,2]
[354316320,1740408631989,-500.0,0.00015061,2]
[354316321,1740408632008,-15651.87,0.00015061,2]
[354316322,1740408632019,-200.0,0.00015069,2]
[354316323,1740408632032,-760.12184069,0.00015091,2]
[354316324,1740408632046,-9809.29815931,0.00015091,2]
[354316325,1740408632057,-546.79606098,0.00015117,2]
[354316326,1740408632068,-1000.0,0.00015144,2]
[354316327,1740408632079,-643.15,0.00015217,2]
[354316328,1740408632091,-150.0,0.00015288,2]
[354316329,1740408632103,-150.0,0.00015288,2]
[354316330,1740408632115,-150.0,0.00015288,2]
[354316331,1740408632126,-150.0,0.00015288,2]
[354316332,1740408632141,-150.0,0.00015288,2]
[354316333,1740408632152,-150.0,0.00015346,2]
[354316334,1740408632164,-163.9,0.00015359,2]
[354316335,1740408632175,-306.57,0.00015361,2]
[354316336,1740408632186,-461.72,0.00015361,2]
[354316337,1740408632197,-150.0,0.00015373,2]
[354316338,1740408632208,-8698.02,0.00015402,2]
[354316339,1740408632219,-200.0,0.00015402,2]
[354316340,1740408632230,-150.0,0.00015405,2]
[354316341,1740408632244,-150.0,0.00015458,2]
[354316342,1740408632260,-150.0,0.00015463,2]
[354316343,1740408632271,-176.2,0.00015473,2]
[354316344,1740408632281,-150.0,0.00015522,2]
[354316345,1740408632291,-150.0,0.00015542,2]
[354316346,1740408632302,-150.0,0.00015581,2]
[354316347,1740408632312,-1399.62,0.00015595,2]
[354316349,1740408632322,-991.74,0.00015619,2]
[354316351,1740408632332,-150.0,0.00015627,2]
[354316353,1740408632343,-150.0,0.00015627,2]
[354316355,1740408632354,-150.0,0.00015639,2]
[354316357,1740408632364,-150.0,0.00015698,2]
[354316359,1740408632374,-150.0,0.00015712,2]
[354316361,1740408632384,-1399.62,0.00015718,2]
[354316363,1740408632393,-150.0,0.00015756,2]
[354316380,1740408632517,-150.0,0.00015797,2]
[354316383,1740408632528,-150.0,0.00015815,2]
[354316386,1740408632538,-989.05371021,0.00015841,2]
[354316393,1740408632576,-410.56628979,0.00015841,2]
[354316396,1740408632587,-150.0,0.00015873,2]
[354316399,1740408632598,-150.0,0.00015882,2]
[354316403,1740408632608,-150.0,0.00015932,2]
[354316405,1740408632618,-1399.62,0.00015964,2]
[354316408,1740408632628,-150.0,0.00015967,2]
[354316410,1740408632637,-150.0,0.00015967,2]
[354316412,1740408632646,-150.0,0.00015991,2]
[354316414,1740408632657,-150.0,0.00016049,2]
[354316416,1740408632667,-150.0,0.00016052,2]
[354316418,1740408632677,-272.15268156,0.00016087,2]
[354316420,1740408632689,-1127.46731844,0.00016087,2]
[354316422,1740408632699,-150.0,0.00016108,2]
[354316424,1740408632708,-150.0,0.00016137,2]
[354316426,1740408632718,-150.0,0.00016137,2]
[354316428,1740408632727,-150.0,0.00016166,2]
[354316430,1740408632736,-510.0,0.00016189,2]
[354316432,1740408632750,-1399.62,0.00016211,2]
[354316434,1740408632759,-150.0,0.00016222,2]
[354316436,1740408632769,-150.0,0.00016225,2]
[354316438,1740408632779,-266.9069,0.00016238,2]
[354316440,1740408632789,-2376.3368,0.00016238,2]
[354316442,1740408632798,-816.37081275,0.00016242,2]
[354316444,1740408632807,-150.0,0.00016283,2]
[354316446,1740408632817,-150.0,0.00016307,2]
[354316448,1740408632827,-150.0,0.00016307,2]
[354316450,1740408632836,-312.083,0.0001632,2]
[354316452,1740408632846,-252.13,0.0001632,2]
[354316454,1740408632855,-1399.62,0.00016334,2]
[354316456,1740408632865,-3707.52787992,0.00016337,2]
[354316458,1740408632877,-300.31341647,0.00016337,2]
[354316461,1740408632894,-1730.34416233,0.00016337,2]
[354316463,1740408632904,-2711.77444595,0.00016338,2]
[354316465,1740408632915,-1842.72328551,0.00016338,2]
[354316467,1740408632926,-320.29041264,0.00016338,2]
[354316469,1740408632938,-757.10016988,0.00016338,2]
[354316471,1740408632949,-147.63803996,0.00016338,2]
[354316473,1740408632960,-136.53195604,0.00016338,2]
[354316510,1740408637700,-534.34984396,0.00016338,2]
[354316512,1740408637710,-1889.2173,0.00016338,2]
[354316513,1740408637720,-1760.58903704,0.00016338,2]
[354316515,1740408637732,-910.04997864,0.00016338,2]
[354316516,1740408637852,-290.34768432,0.00016338,2]
[354316517,1740408637862,-339.4439,0.00016338,2]
[354316518,1740408637872,-3321.9954,0.00016338,2]
[354316519,1740408637881,-1000.0,0.00016338,2]
[354316520,1740408637891,-7500.0,0.00016338,2]
[354316521,1740408637900,-2500.0,0.00016338,2]
[354316522,1740408637909,-55555.0,0.00016338,2]
[354316523,1740408637919,-150.0,0.00016342,2]
[354316524,1740408637928,-816.37081271,0.00016344,2]
[354316525,1740408637938,-150.0,0.00016392,2]
[354316526,1740408637947,-150.0,0.00016401,2]
[354316527,1740408637956,-332.1171,0.00016418,2]
[354316528,1740408637965,-2326.6617,0.00016418,2]
[354316529,1740408637975,-1000.0,0.00016419,2]
[354316530,1740408637983,-153.60690226,0.0001642,2]
[354316531,1740408637992,-500.0,0.00016422,2]
[354316532,1740408638003,-989.7,0.00016423,2]
[354316533,1740408638013,-1017.31,0.00016425,2]
[354316534,1740408638022,-991.08,0.00016427,2]
[354316535,1740408638031,-200.0,0.00016428,2]
[354316536,1740408638040,-12619.063061,0.00016428,2]
[354316537,1740408638050,-293.31,0.00016428,2]
[354316538,1740408638060,-4206.35435365,0.00016428,2]
[354316539,1740408638070,-500.0,0.00016429,2]
[354316540,1740408638079,-990.58,0.00016429,2]
[354316541,1740408638089,-998.3,0.00016432,2]
[354316542,1740408638099,-365.19846225,0.00016437,2]
[354316543,1740408638113,-500.0,0.00016437,2]
[354316544,1740408638123,-500.0,0.00016438,2]
[354316545,1740408638133,-502.55524579,0.00016438,2]
[354316546,1740408638142,-500.0,0.00016438,2]
[354316547,1740408638152,-500.0,0.00016438,2]
[354316548,1740408638163,-500.0,0.00016438,2]
[354316549,1740408638172,-500.0,0.00016438,7]
[354316550,1740408638183,-500.0,0.00016438,2]
[354316551,1740408638193,-500.0,0.00016438,2]
[354316552,1740408638204,-500.0,0.00016438,2]
[354316553,1740408638214,-500.0,0.00016438,2]
[354316554,1740408638224,-509.79378954,0.00016438,2]
[354316555,1740408638234,-500.0,0.00016438,2]
[354316556,1740408638243,-507.13389185,0.00016438,2]
[354316557,1740408638260,-500.0,0.00016438,2]
[354316559,1740408638270,-500.0,0.00016438,2]
[354316561,1740408638280,-500.0,0.00016438,2]
[354316562,1740408638290,-500.0,0.00016438,2]
[354316563,1740408638300,-500.91134347,0.00016438,2]
[354316564,1740408638309,-500.0,0.00016438,2]
[354316565,1740408638319,-360.0282563,0.00016438,2]
[354316566,1740408638329,-500.0,0.00016438,2]
[354316567,1740408638339,-500.0,0.00016438,2]
[354316568,1740408638349,-500.0,0.00016438,2]
[354316569,1740408638358,-500.0,0.00016438,2]
[354316570,1740408638368,-500.0,0.00016438,2]
[354316571,1740408638378,-500.0,0.00016438,2]
[354316572,1740408638387,-500.0,0.00016438,2]
[354316573,1740408638398,-500.0,0.00016438,2]
[354316574,1740408638407,-500.0,0.00016438,2]
[354316575,1740408638417,-500.0,0.00016438,2]
[354316576,1740408638427,-500.0,0.00016438,2]
[354316577,1740408638437,-500.0,0.00016438,2]
[354316578,1740408638446,-500.0,0.00016438,2]
[354316579,1740408638455,-500.0,0.00016438,2]
[354316580,1740408638465,-500.0,0.00016438,2]
[354316581,1740408638474,-500.0,0.00016438,2]
[354316582,1740408638483,-500.0,0.00016438,2]
[354316583,1740408638493,-500.0,0.00016438,2]
[354316584,1740408638506,-500.0,0.00016438,2]
[354316585,1740408638516,-500.0,0.00016438,2]
[354316586,1740408638525,-264.35111335,0.00016438,2]
[354316587,1740408638535,-500.0,0.00016438,2]
[354316588,1740408638544,-500.0,0.00016438,2]
[354316589,1740408638554,-500.0,0.00016438,2]
[354316590,1740408638564,-513.48,0.00016438,2]
[354316591,1740408638574,-500.0,0.00016438,2]
[354316592,1740408638583,-500.0,0.00016438,2]
[354316593,1740408638592,-500.0,0.00016438,2]
[354316594,1740408638601,-500.0,0.00016438,2]
[354316595,1740408638611,-705.72,0.00016438,2]
[354316596,1740408638620,-506.31919096,0.00016438,2]
[354316597,1740408638629,-500.0,0.00016438,2]
[354316598,1740408638639,-500.0,0.00016438,2]
[354316599,1740408638649,-500.0,0.00016438,2]
[354316600,1740408638659,-500.0,0.00016438,2]
[354316601,1740408638668,-700.78,0.00016438,2]
[354316602,1740408638678,-500.0,0.00016438,2]
[354316603,1740408638688,-500.0,0.00016438,2]
[354316604,1740408638698,-500.0,0.00016438,2]
[354316605,1740408638708,-500.0,0.00016438,2]
[354316606,1740408638718,-500.0,0.00016438,2]